bitfinex/quotes_BTCUSD_20251224
["timestamp","ask_amount","ask_price","bid_price","bid_amount"]
[1766594007430,0.01152,87111.0,87106.0,0.01148026]
[1766594007671,0.01152,87111.0,87107.0,0.01148013]
[1766594007978,0.01152,87111.0,87105.0,0.01148039]
[1766594008181,0.000549,87107.0,87104.0,0.06888186]
[1766594008508,0.01152,87111.0,87104.0,0.01148052]
[1766594008734,0.01152,87111.0,87103.0,0.06888389]
[1766594008937,0.01152,87111.0,87105.0,0.01148039]
[1766594009152,0.01152,87111.0,87103.0,0.01148066]
[1766594009323,0.01152,87111.0,87102.0,0.00010626]
[1766594009684,0.01148,87108.0,87102.0,0.00010626]
[1766594009888,0.01147987,87109.0,87102.0,0.00010626]
[1766594010088,0.01148,87108.0,87102.0,0.00010626]
[1766594010247,0.0229996,87111.0,87102.0,0.00010626]
[1766594010443,0.01152,87111.0,87103.0,0.01148066]
[1766594010669,0.01152,87111.0,87105.0,0.01148039]
[1766594010915,0.01152,87111.0,87104.0,0.06888307]
[1766594011120,0.01152,87111.0,87105.0,0.01148039]
[1766594011496,0.01152,87111.0,87104.0,0.01148052]
[1766594011675,0.01152,87111.0,87103.0,0.01148066]
[1766594012318,0.01152,87111.0,87102.0,0.06898978]
[1766594012613,0.01152,87111.0,87102.0,0.01158705]
[1766594012831,0.01152,87111.0,87092.0,0.01159211]
[1766594012832,0.120379,87102.0,87092.0,0.01159211]
[1766594012985,0.01152,87101.0,87094.0,0.01148184]
[1766594013193,0.01152,87101.0,87096.0,0.01148158]
[1766594014428,0.01152,87101.0,87095.0,0.05740802]
[1766594014429,0.01152,87101.0,87095.0,0.01148171]
[1766594014686,0.01152,87101.0,87093.0,0.06889181]
[1766594014830,0.01152,87101.0,87094.0,0.01148184]
[1766594015243,0.01152,87101.0,87095.0,0.01148171]
[1766594016029,0.01152,87101.0,87092.0,0.00011]
[1766594016030,0.03094177,87144.0,87121.0,0.01147828]
[1766594016232,0.03094177,87144.0,87092.0,0.00011]
[1766594016234,0.00011,87158.0,87092.0,0.00011]
[1766594016236,0.06172269,87187.0,87157.0,0.0299]
[1766594016457,0.00011,87209.0,87157.0,0.0299]
[1766594016459,0.04104877,87256.0,87201.0,0.00598697]
[1766594016665,0.08209754,87285.0,87201.0,0.00598697]
[1766594016666,0.02462421,87265.0,87220.0,0.0307923]
[1766594016869,0.0116,87336.0,87201.0,0.00598697]
[1766594016870,0.0344054,87293.0,87255.0,0.4501985]
[1766594017092,0.02755564,87311.0,87240.0,0.0275112]
[1766594017093,0.02755564,87311.0,87266.0,0.02462421]
[1766594017313,0.02755564,87311.0,87259.0,0.02755564]
[1766594017314,0.0116,87316.0,87259.0,0.02755564]
[1766594017315,0.01145383,87307.0,87273.0,0.03666613]
[1766594017510,0.04592,87326.0,87301.0,0.01145462]
[1766594017511,0.03666613,87325.0,87301.0,0.01145462]
[1766594017710,0.03666613,87325.0,87280.0,0.4501985]
[1766594017711,0.11273,87332.0,87303.0,0.01145436]
[1766594017918,0.03666613,87333.0,87293.0,0.03042143]
[1766594017919,0.03666613,87319.0,87304.0,0.0116]
[1766594018122,0.03666613,87319.0,87310.0,0.01145344]
[1766594018123,0.00010617,87319.0,87310.0,0.01145344]
[1766594018344,0.0114495,87340.0,87308.0,0.0114537]
[1766594018345,0.01164,87341.0,87330.0,0.01145081]
[1766594018557,0.01164,87341.0,87307.0,0.22907642]
[1766594018558,0.00035363,87341.0,87334.0,1e-08]
[1766594018763,0.00035363,87341.0,87324.0,0.01164]
[1766594018764,0.00035363,87341.0,87330.0,0.05174802]
[1766594018982,0.00035363,87341.0,87324.0,0.01164]
[1766594018983,0.03666613,87355.0,87333.0,0.04029721]
[1766594019211,0.03666613,87355.0,87323.0,0.22903279]
[1766594019212,0.01144688,87360.0,87355.0,8.995e-05]
[1766594019431,0.01144688,87360.0,87341.0,0.05174658]
[1766594019432,0.01144636,87364.0,87351.0,0.0594641]
[1766594019668,0.11273,87364.0,87361.0,0.01144675]
[1766594019881,0.11273,87364.0,87357.0,0.06813466]
[1766594019882,0.11273,87364.0,87360.0,6.5e-07]
[1766594020082,0.00011,87367.0,87365.0,0.05723115]
[1766594020212,0.00011,87367.0,87364.0,0.05723157]
[1766594020213,0.0116,87378.0,87370.0,0.01144557]
[1766594020418,0.0116,87378.0,87372.0,0.01144531]
[1766594020419,0.11273,87375.0,87372.0,0.01144531]
[1766594020829,0.01144256,87393.0,87364.0,2.72e-06]
[1766594020830,0.04588,87398.0,87385.0,0.01144361]
[1766594021065,0.04588,87398.0,87375.0,0.01144492]
[1766594021066,0.04810777,87400.0,87393.0,0.01144256]
[1766594021067,0.11273,87400.0,87393.0,0.01144256]
[1766594021329,0.11273,87400.0,87375.0,0.001099]
[1766594021330,0.03435629,87435.0,87375.0,0.001099]
[1766594021331,0.11273,87403.0,87380.0,0.4501985]
[1766594021505,0.11273,87423.0,87416.0,0.00573955]
[1766594021653,0.01164,87431.0,87416.0,0.01143955]
[1766594021654,0.11273,87422.0,87416.0,0.01143955]
[1766594021858,0.11273,87422.0,87414.0,0.01143981]
[1766594022053,0.11273,87422.0,87414.0,0.00035363]
[1766594022295,0.11273,87414.0,87394.0,0.24048604]
[1766594022536,0.0549086,87415.0,87394.0,0.24048604]
[1766594022537,0.01164,87413.0,87394.0,0.0003542]
[1766594022741,0.11273,87412.0,87405.0,9.9e-07]
[1766594022940,0.01164,87418.0,87413.0,0.05719973]
[1766594023151,0.01164,87418.0,87406.0,0.01144086]
[1766594023152,0.11273,87417.0,87406.0,0.01144086]
[1766594023324,0.11273,87414.0,87411.0,0.0114402]
[1766594023538,0.00011,87424.0,87417.0,0.01143942]
[1766594023740,0.00011,87424.0,87411.0,0.0114402]
[1766594023741,0.108589,87423.0,87416.0,0.01143955]
[1766594023976,0.11273,87427.0,87421.0,0.01143889]
[1766594024173,0.0549086,87442.0,87427.0,0.01143811]
[1766594024174,0.11273,87441.0,87427.0,0.01143811]
[1766594024429,0.11273,87441.0,87414.0,0.01164]
[1766594024430,0.11273,87436.0,87430.0,0.02381265]
[1766594024649,0.11273,87436.0,87422.0,0.01143876]
[1766594024868,0.11273,87436.0,87423.0,0.01143863]
[1766594025063,0.11273,87436.0,87390.0,0.4501985]
[1766594025266,0.11273,87436.0,87425.0,0.01143837]
[1766594025464,0.01143602,87443.0,87423.0,0.0003542]
[1766594025465,0.409347,87447.0,87439.0,0.01143654]
[1766594025686,0.01143301,87466.0,87423.0,0.0003542]
[1766594025687,0.01143353,87462.0,87444.0,0.01143589]
[1766594025859,0.4501985,87454.0,87452.0,0.01143484]
[1766594026062,0.01164,87453.0,87447.0,0.01143549]
[1766594026260,0.01164,87453.0,87429.0,0.22875513]
[1766594026261,0.0549086,87461.0,87456.0,0.01143432]
[1766594026462,0.0549086,87461.0,87437.0,0.01164]
[1766594026463,0.22860226,87489.0,87437.0,0.01164]
[1766594026464,0.11273,87478.0,87466.0,1e-08]
[1766594026739,7.32294407,87500.0,87499.0,0.05714351]
[1766594026989,7.32294407,87500.0,87499.0,0.15505771]
[1766594026990,2.23825996,87500.0,87499.0,0.15505771]
[1766594027211,0.01172,87553.0,87519.0,0.01142609]
[1766594027212,0.11273,87553.0,87519.0,0.01142609]
[1766594027446,0.00447366,87562.0,87507.0,0.01142765]
[1766594027447,0.00447366,87562.0,87556.0,0.01142126]
[1766594027448,0.11273,87559.0,87556.0,0.01142126]
[1766594027767,0.11273,87559.0,87521.0,0.03657164]
[1766594027768,0.05879513,87579.0,87578.0,0.05709196]
[1766594027769,1e-08,87579.0,87578.0,0.05709196]
[1766594027943,1e-08,87579.0,87576.0,0.01141865]
[1766594028165,0.45227036,87590.0,87582.0,0.05708877]
[1766594028480,0.45227036,87590.0,87579.0,0.01141826]
[1766594028482,0.01450999,87583.0,87579.0,0.01141826]
[1766594028691,0.00207186,87590.0,87584.0,0.01141761]
[1766594028897,0.00105093,87596.0,87584.0,0.01141761]
[1766594028898,2.79e-06,87596.0,87595.0,0.05708088]
[1766594029117,2.79e-06,87596.0,87583.0,0.001099]
[1766594029118,0.11273,87595.0,87583.0,0.001099]
[1766594029333,0.11273,87595.0,87542.0,0.45692186]
[1766594029334,0.11273,87581.0,87543.0,0.01172]
[1766594029547,0.4501985,87593.0,87543.0,0.01172]
[1766594029548,0.00114011,87594.0,87543.0,0.01172]
[1766594029549,0.0458,87643.0,87604.0,0.011415]
[1766594029771,1e-08,87613.0,87610.0,0.01141422]
[1766594029998,0.11273001,87613.0,87610.0,0.01141422]
[1766594030203,1e-08,87619.0,87616.0,0.01141344]
[1766594030409,0.11273,87610.0,87607.0,0.01141461]
[1766594030616,0.0849643,87618.0,87609.0,0.01141435]
[1766594030831,1e-08,87619.0,87609.0,0.01141435]
[1766594030832,1e-08,87619.0,87615.0,0.01141357]
[1766594031055,0.11273,87611.0,87609.0,1.76e-06]
[1766594031276,1e-08,87619.0,87609.0,1.76e-06]
[1766594031277,0.55394335,87630.0,87609.0,1.76e-06]
[1766594031278,0.0458,87639.0,87624.0,0.01141239]
[1766594031491,0.1401343,87639.0,87627.0,0.05705996]
[1766594031697,0.11273,87624.0,87585.0,0.01176895]
[1766594031902,0.0129574,87642.0,87585.0,0.01176895]
[1766594031903,0.05756,87623.0,87608.0,0.01141448]
[1766594032144,0.00011,87619.0,87616.0,0.01141344]
[1766594032391,0.11273,87640.0,87614.0,0.0274043]
[1766594032392,0.11273,87640.0,87638.0,0.05675289]
[1766594032594,0.11273,87640.0,87632.0,0.01141135]
[1766594032596,0.11273,87658.0,87650.0,0.01140901]
[1766594032801,0.11273,87658.0,87617.0,0.0118]
[1766594032802,0.11273,87655.0,87640.0,0.00428143]
[1766594033002,0.11273,87655.0,87649.0,0.0274043]
[1766594033208,0.0118,87657.0,87654.0,0.01140849]
[1766594033418,0.0118,87657.0,87640.0,4.22e-06]
[1766594033419,0.12413992,87643.0,87640.0,4.22e-06]
[1766594033654,0.12413992,87643.0,87617.0,0.01141331]
[1766594033655,0.11273,87637.0,87617.0,0.01141331]
[1766594033852,0.11273,87637.0,87596.0,0.0274043]
[1766594033853,0.11273,87637.0,87604.0,0.011415]
[1766594033854,0.11273,87619.0,87604.0,0.011415]
[1766594034058,0.05756,87618.0,87599.0,0.00011]
[1766594034275,0.11273,87634.0,87610.0,0.01141422]
[1766594034482,0.00035621,87637.0,87605.0,0.01141487]
[1766594034483,0.11273,87620.0,87606.0,0.05707371]
[1766594034685,0.00035621,87637.0,87616.0,0.01141344]
[1766594034900,0.00035621,87637.0,87626.0,0.01141213]
[1766594034901,0.0118,87636.0,87626.0,0.01141213]
[1766594035130,0.0118,87636.0,87607.0,0.1574043]
[1766594035131,0.11273,87622.0,87607.0,0.13]
[1766594035342,0.11273,87622.0,87599.0,0.01152565]
[1766594035343,0.01141383,87613.0,87599.0,0.00011]
[1766594035550,0.001099,87626.0,87599.0,0.00011]
[1766594035551,0.11273,87639.0,87620.0,0.01141291]
[1766594035762,0.0114094,87647.0,87641.0,0.05705066]
[1766594035763,0.01184,87647.0,87641.0,0.05705066]
[1766594035974,0.00387576,87665.0,87649.0,0.01140914]
[1766594036183,0.00387576,87665.0,87641.0,8.577e-05]
[1766594036184,5.1e-07,87659.0,87658.0,0.0274043]
[1766594036467,0.000549,87658.0,87655.0,0.01140836]
[1766594036673,0.000549,87658.0,87643.0,0.22819692]
[1766594036674,0.0274043,87710.0,87658.0,0.0274043]
[1766594036870,0.01140211,87703.0,87679.0,0.01140523]
[1766594037072,0.01140328,87694.0,87688.0,0.0274043]
[1766594037273,0.01140328,87694.0,87668.0,0.22813224]
[1766594037274,0.01184,87703.0,87675.0,0.0274043]
[1766594037275,0.000549,87679.0,87675.0,0.0274043]
[1766594037572,0.01184,87685.0,87675.0,0.0274043]
[1766594037778,0.01140497,87681.0,87678.0,0.0274043]
[1766594037985,0.02324445,87685.0,87676.0,0.0274043]
[1766594038190,0.01140641,87670.0,87652.0,0.01140875]
[1766594038391,0.06843648,87673.0,87652.0,0.00010617]
[1766594038392,0.59471,87668.0,87652.0,0.00010617]
[1766594038546,0.59471,87689.0,87664.0,0.0274043]
[1766594038770,0.01140328,87694.0,87652.0,0.01198617]
[1766594038771,0.59471,87673.0,87668.0,0.001099]
[1766594038968,0.59471,87673.0,87654.0,0.0274043]
[1766594038969,0.59471,87670.0,87654.0,0.0274043]
[1766594039319,0.59471,87670.0,87641.0,0.22820204]
[1766594039320,0.59471,87653.0,87627.0,0.011412]
[1766594039526,0.59471,87647.0,87630.0,0.01141161]
[1766594039722,0.01188,87652.0,87627.0,0.00035621]
[1766594039723,0.59471,87644.0,87631.0,0.01141148]
[1766594039876,0.04572,87650.0,87627.0,0.01176821]
[1766594039877,0.00011,87662.0,87627.0,0.01176821]
[1766594039878,0.59471,87721.0,87665.0,0.01140706]
[1766594040090,0.0114051,87680.0,87670.0,0.0274043]
[1766594040294,0.01188,87682.0,87670.0,0.0274043]
[1766594040632,0.06841543,87700.0,87679.0,0.01140523]
[1766594040842,0.59471,87706.0,87668.0,0.01140667]
[1766594041050,0.59471,87706.0,87657.0,0.22815961]
[1766594041051,0.00055,87668.0,87639.0,0.01141044]
[1766594041259,0.01140419,87687.0,87667.0,0.03649344]
[1766594041490,0.60611263,87699.0,87686.0,0.03649344]
[1766594041689,0.59471,87699.0,87687.0,0.001099]
[1766594041898,0.01140094,87712.0,87687.0,0.01934447]
[1766594042104,0.01140068,87714.0,87689.0,0.05701969]
[1766594042105,0.01192,87711.0,87689.0,0.05701969]
[1766594042375,0.01192,87711.0,87679.0,0.01192]
[1766594042376,0.01192,87711.0,87672.0,0.01140615]
[1766594042649,0.01192,87711.0,87648.0,0.45636802]
[1766594042650,0.01192,87711.0,87673.0,0.00010631]
[1766594042651,0.01140536,87678.0,87673.0,0.00010631]
[1766594042856,0.01140536,87678.0,87651.0,0.23958622]
[1766594042857,0.01141031,87640.0,87635.0,0.03423612]
[1766594043065,0.01824547,87674.0,87635.0,0.00010631]
[1766594043066,0.65231,87639.0,87635.0,0.00010631]
[1766594043265,0.06845884,87644.0,87611.0,0.00011]
[1766594043266,0.011412,87627.0,87611.0,0.00011]
[1766594043513,0.01824547,87637.0,87611.0,0.00035621]
[1766594043514,0.60663,87626.0,87611.0,0.00035621]
[1766594043723,0.60663,87626.0,87581.0,0.01192]
[1766594043724,0.01824547,87637.0,87602.0,0.01141526]
[1766594043725,0.59471,87611.0,87602.0,0.01141526]
[1766594043976,0.01192,87610.0,87601.0,0.01141539]
[1766594044184,0.60612187,87628.0,87605.0,0.01141487]
[1766594044399,0.04579,87633.0,87610.0,0.01141422]
[1766594044597,0.04579,87633.0,87605.0,0.00010632]
[1766594044598,0.000549,87610.0,87605.0,0.00010632]
[1766594044806,0.04568,87617.0,87605.0,0.00010632]
[1766594044995,0.01182303,87616.0,87614.0,0.14]
[1766594045433,0.0002,87741.0,87614.0,0.14]
[1766594045434,0.59471,87647.0,87615.0,0.0413145]
[1766594045642,0.59471,87647.0,87629.0,0.01141174]
[1766594045643,0.59471,87643.0,87629.0,0.01141174]
[1766594045864,0.59471,87643.0,87636.0,0.01141083]
[1766594046076,0.59471,87643.0,87621.0,0.22825498]
[1766594046077,0.01141031,87640.0,87637.0,0.02306903]
[1766594046291,0.01141031,87640.0,87620.0,0.06779222]
[1766594046292,0.60663,87642.0,87620.0,0.05637931]
[1766594046504,0.60663,87642.0,87631.0,0.05637931]
[1766594046716,0.60663,87642.0,87615.0,0.01192]
[1766594046717,0.60663,87642.0,87632.0,0.05637931]
[1766594046923,0.00011,87645.0,87634.0,0.05637931]
[1766594047119,0.04568,87650.0,87622.0,0.07519696]
[1766594047120,0.01141005,87642.0,87635.0,0.05637931]
[1766594047324,0.0233294,87647.0,87635.0,0.00011]
[1766594047325,0.01192,87647.0,87635.0,0.00011]
[1766594047527,0.01140797,87658.0,87635.0,0.00011]
[1766594047528,0.59471,87671.0,87639.0,0.07519696]
[1766594047736,0.59471,87671.0,87638.0,0.01369246]
[1766594047737,0.06844015,87668.0,87660.0,0.05812437]
[1766594047956,0.001099,87660.0,87658.0,0.05812027]
[1766594048159,0.001099,87660.0,87649.0,0.01140914]
[1766594048160,0.01140836,87655.0,87649.0,0.00011]
[1766594048360,0.57071,87656.0,87649.0,0.00011]
[1766594048565,0.55241094,87680.0,87649.0,0.00011]
[1766594048566,0.01196,87657.0,87651.0,0.07519696]
[1766594048743,0.01196,87657.0,87635.0,0.00011]
[1766594048744,0.04568,87668.0,87635.0,0.00011]
[1766594048745,0.01140966,87645.0,87635.0,0.00011]
[1766594048943,0.59471,87646.0,87635.0,0.00021632]
[1766594049165,0.06900888,87645.0,87635.0,0.00021632]
[1766594049488,0.01141031,87640.0,87635.0,0.00021632]
[1766594049691,0.60612057,87638.0,87635.0,0.00021632]
[1766594049892,0.60612057,87638.0,87610.0,0.01141422]
[1766594049893,0.01141135,87632.0,87610.0,0.01141422]
[1766594050093,0.01196,87637.0,87610.0,0.00010636]
[1766594050094,0.01141291,87620.0,87610.0,0.00010636]
[1766594050304,0.01369246,87628.0,87610.0,0.00010636]
[1766594050305,0.01141344,87616.0,87614.0,0.00011]
[1766594050495,0.01141344,87616.0,87593.0,0.01141643]
[1766594050496,0.02337304,87619.0,87583.0,0.01141774]
[1766594050497,0.06849142,87603.0,87583.0,0.01141774]
[1766594050730,0.00016422,87602.0,87591.0,0.01141669]
[1766594050900,0.05707108,87611.0,87592.0,0.00011]
[1766594051138,0.05707827,87599.0,87592.0,0.00011]
[1766594051310,0.01141669,87591.0,87570.0,0.01141943]
[1766594051510,0.01141669,87591.0,87511.0,2.85677877]
[1766594051511,0.000223,87570.0,87558.0,0.1429679]
[1766594051816,0.01185,87570.0,87562.0,0.00046657]
[1766594052010,0.02834629,87598.0,87567.0,0.01369246]
[1766594052011,0.01196,87576.0,87567.0,0.01369246]
[1766594052210,0.011744,87575.0,87568.0,0.01141969]
[1766594052426,0.01141591,87597.0,87577.0,0.01141852]
[1766594052672,0.01141591,87597.0,87574.0,0.01141891]
[1766594052673,0.01196,87595.0,87568.0,0.01369246]
[1766594052891,0.01196,87595.0,87565.0,0.01142008]
[1766594052892,0.65179419,87590.0,87565.0,0.01142008]
[1766594053083,0.65179419,87590.0,87564.0,0.05710109]
[1766594053084,0.59471,87590.0,87580.0,0.05709054]
[1766594053221,0.00011,87600.0,87586.0,0.01141734]
[1766594053421,0.01141761,87584.0,87564.0,0.01142021]
[1766594053621,0.59471,87594.0,87562.0,0.00046657]
[1766594053622,0.01369246,87581.0,87562.0,0.00046657]
[1766594053848,0.0570997,87567.0,87546.0,0.01142256]
[1766594054041,0.01142008,87565.0,87547.0,0.01142243]
[1766594054274,0.01142021,87564.0,87552.0,0.00011]
[1766594054427,0.66323131,87564.0,87552.0,0.00011]
[1766594054629,0.01404881,87567.0,87554.0,0.01142152]
[1766594054630,0.00035635,87567.0,87554.0,0.01142152]
[1766594054848,0.00035635,87567.0,87553.0,0.01142165]
[1766594054849,0.01196,87566.0,87553.0,0.01142165]
[1766594055054,0.05710225,87563.0,87552.0,0.00011]
[1766594055261,0.59471,87563.0,87552.0,0.00011]
[1766594055486,0.01177617,87567.0,87555.0,0.01142139]
[1766594055487,0.01196,87562.0,87555.0,0.01142139]
[1766594055809,0.01369246,87561.0,87552.0,0.00011]
[1766594056024,0.000549,87555.0,87552.0,0.00011]
[1766594056243,0.01142165,87553.0,87540.0,0.0103909]
[1766594056472,0.01142165,87553.0,87541.0,0.0103909]
[1766594056690,0.01142165,87553.0,87533.0,0.05712068]
[1766594056691,0.01142334,87540.0,87530.0,0.1429679]
[1766594056900,0.61982541,87543.0,87515.0,0.0004]
[1766594056901,0.61982541,87543.0,87531.0,0.00011]
[1766594056902,0.02338347,87539.0,87531.0,0.00011]
[1766594057110,0.02338347,87539.0,87516.0,0.05713227]
[1766594057111,0.59471,87538.0,87519.0,0.01142609]
[1766594057324,0.01196,87539.0,87515.0,0.0004]
[1766594057325,0.01369246,87528.0,87515.0,0.0004]
[1766594057533,0.01369246,87528.0,87509.0,0.01142739]
[1766594057534,0.05764,87527.0,87512.0,0.011427]
[1766594057761,0.05764,87527.0,87499.0,0.22857153]
[1766594057762,0.59471,87530.0,87517.0,0.00011]
[1766594057995,0.34263572,87557.0,87517.0,0.00011]
[1766594057996,0.01196,87543.0,87529.0,0.01142478]
[1766594058202,0.01196,87545.0,87534.0,0.01142413]
[1766594058411,0.04568,87554.0,87526.0,0.05712588]
[1766594058412,0.01196,87544.0,87526.0,0.05712588]
[1766594058626,0.01196,87544.0,87533.0,0.05712123]
[1766594058833,0.01196,87545.0,87535.0,0.05711946]
[1766594059046,0.01369246,87544.0,87527.0,0.01142504]
[1766594059323,0.01369246,87544.0,87484.0,0.08014166]
[1766594059324,0.04579,87551.0,87541.0,0.22846289]
[1766594059532,0.66322878,87568.0,87552.0,0.06853069]
[1766594059533,0.59471,87568.0,87552.0,0.06853069]
[1766594059733,0.00011,87561.0,87551.0,0.000549]
[1766594059940,0.00011,87561.0,87541.0,0.00011]
[1766594059941,0.00011,87561.0,87545.0,0.01142269]
[1766594060151,0.01369246,87560.0,87543.0,0.01142295]
[1766594060381,0.00011,87561.0,87557.0,0.0685262]
[1766594060596,0.01141839,87578.0,87541.0,0.00011]
[1766594060597,0.05709075,87580.0,87562.0,0.01142047]
[1766594060804,0.01196,87573.0,87558.0,0.011421]
[1766594061013,0.01196,87573.0,87556.0,0.01142126]
[1766594061215,0.01196,87573.0,87548.0,0.24040543]
[1766594061216,0.000549,87556.0,87548.0,0.0114223]
[1766594061425,0.000549,87556.0,87540.0,0.02338334]
[1766594061646,0.000549,87556.0,87510.0,0.55241094]
[1766594061647,0.01141839,87578.0,87559.0,0.01142087]
[1766594061885,0.05708689,87586.0,87565.0,0.05710042]
[1766594062104,0.59471,87590.0,87581.0,0.011418]
[1766594062105,0.01196,87587.0,87581.0,0.011418]
[1766594062315,0.02510941,87589.0,87582.0,0.00114177]
[1766594062517,0.02510941,87589.0,87566.0,0.22839836]
[1766594062518,0.02510941,87589.0,87578.0,0.01141839]
[1766594062519,0.01196,87588.0,87578.0,0.01141839]
[1766594062730,0.01196,87588.0,87583.0,0.01369246]
[1766594062952,0.01196,87627.0,87583.0,0.01369246]
[1766594062953,0.13708,87639.0,87588.0,0.001099]
[1766594063187,0.01369246,87657.0,87598.0,0.01369246]
[1766594063188,0.05731542,87619.0,87598.0,0.01369246]
[1766594063399,0.00024975,87619.0,87616.0,0.01141344]
[1766594063614,0.01207,87622.0,87608.0,0.01141448]
[1766594063827,0.05706629,87618.0,87602.0,0.00011]
[1766594064043,0.01141357,87615.0,87602.0,0.00011]
[1766594064275,0.05706668,87617.0,87590.0,0.01141682]
[1766594064276,0.01141409,87611.0,87590.0,0.01141682]
[1766594064479,0.01369246,87617.0,87584.0,0.01141761]
[1766594064480,0.01141526,87602.0,87585.0,0.01141748]
[1766594064705,0.59471,87605.0,87577.0,0.01196]
[1766594064706,0.59471,87605.0,87590.0,0.00010639]
[1766594064920,0.35603769,87631.0,87590.0,0.00010639]
[1766594064921,0.06847828,87619.0,87599.0,0.01141565]
[1766594065138,0.06847828,87619.0,87595.0,0.01141617]
[1766594065139,0.01141357,87615.0,87595.0,0.01141617]
[1766594065348,0.02510577,87617.0,87595.0,0.05708082]
[1766594065554,0.01141344,87616.0,87593.0,0.01141643]
[1766594065767,0.01141409,87611.0,87595.0,0.01141617]
[1766594065979,0.01369246,87617.0,87590.0,0.00010639]
[1766594065980,0.01141565,87599.0,87590.0,0.00010639]
[1766594066187,0.011411,87598.0,87590.0,0.00010639]
[1766594066409,0.05764,87603.0,87598.0,0.00055]
[1766594066625,0.05764,87603.0,87590.0,0.00010639]
[1766594066626,0.00011,87608.0,87605.0,0.00686406]
[1766594066851,0.59471,87626.0,87603.0,0.01141513]
[1766594066852,0.01141239,87624.0,87603.0,0.01141513]
[1766594067125,0.01141422,87610.0,87592.0,0.01141656]
[1766594067338,0.01141422,87610.0,87590.0,0.00010639]
[1766594067339,0.000549,87603.0,87590.0,0.01152321]
[1766594067557,0.01141526,87602.0,87590.0,0.00010639]
[1766594067774,0.01196,87601.0,87590.0,0.00010639]
[1766594067986,0.01141604,87596.0,87579.0,0.01141826]
[1766594068226,0.59471,87598.0,87584.0,0.01141761]
[1766594068496,0.59471,87598.0,87580.0,0.00011]
[1766594068497,0.04579,87600.0,87580.0,0.00011]
[1766594068498,0.01141643,87593.0,87580.0,0.00011]
[1766594068711,0.01196,87597.0,87568.0,0.06851777]
[1766594068712,0.000549,87584.0,87581.0,0.01042542]
[1766594068920,0.01196,87583.0,87569.0,0.01141956]
[1766594069132,0.01196,87583.0,87552.0,0.06001918]
[1766594069133,0.01196,87583.0,87561.0,0.0114206]
[1766594069353,0.95118774,87583.0,87563.0,0.05710174]
[1766594069562,0.01196,87587.0,87568.0,0.01141969]
[1766594069563,0.01141734,87586.0,87568.0,0.01141969]
[1766594069780,0.01141734,87586.0,87571.0,0.05709597]
[1766594069781,0.04568,87586.0,87571.0,0.05709597]
[1766594069994,0.01141761,87584.0,87565.0,0.05710022]
[1766594070205,0.02510994,87585.0,87568.0,0.01141969]
[1766594070420,0.02510994,87585.0,87563.0,0.01142034]
[1766594070421,0.02510994,87585.0,87548.0,0.25]
[1766594070422,0.01141995,87566.0,87548.0,0.25]
[1766594070641,0.01141995,87566.0,87541.0,0.06012918]
[1766594070642,0.01369246,87556.0,87541.0,0.00011]
[1766594070848,0.01369246,87556.0,87525.0,0.03428365]
[1766594070849,0.00055,87548.0,87536.0,0.01142387]
[1766594071053,0.01196,87547.0,87534.0,0.01142413]
[1766594071267,0.01196,87546.0,87534.0,0.0685445]
[1766594071477,0.01196,87546.0,87539.0,0.01142347]
[1766594071711,0.01196,87546.0,87534.0,0.01142413]
[1766594071939,0.01196,87546.0,87537.0,0.05711815]
[1766594072155,0.01117378,87546.0,87533.0,0.01142426]
[1766594072375,0.00011,87551.0,87534.0,0.01142413]
[1766594072580,0.01156695,87545.0,87532.0,0.01142439]
[1766594072786,0.01156695,87545.0,87531.0,0.05723213]
[1766594072787,0.00965135,87544.0,87531.0,0.00011]
[1766594073208,0.02298964,87545.0,87525.0,0.06855138]
[1766594073209,0.02298964,87545.0,87528.0,0.01142491]
[1766594073427,0.01156695,87545.0,87528.0,0.06854925]
[1766594073628,0.01156695,87545.0,87533.0,0.01142426]
[1766594073881,0.01156695,87545.0,87532.0,0.01142439]
[1766594073882,0.00011,87551.0,87532.0,0.01142439]
[1766594074083,0.01142243,87547.0,87530.0,0.01142465]
[1766594074236,0.04568,87549.0,87531.0,0.01142452]
[1766594074438,0.04568,87549.0,87532.0,0.01142439]
[1766594074439,0.05710217,87549.0,87532.0,0.01142439]
[1766594074642,0.05710217,87549.0,87526.0,0.01142517]
[1766594074643,0.05710217,87549.0,87514.0,0.01142674]
[1766594074644,0.000549,87532.0,87514.0,0.01142674]
[1766594074897,0.000549,87532.0,87492.0,0.08014166]
[1766594074898,0.01196,87531.0,87520.0,0.01142595]
[1766594075094,1.16823128,87543.0,87501.0,0.01196]
[1766594075095,0.93977,87543.0,87509.0,0.34282025]
[1766594075303,0.05764,87542.0,87532.0,0.01142439]
[1766594075629,0.05764,87542.0,87519.0,0.01142609]
[1766594075630,0.01142387,87536.0,87519.0,0.01142609]
[1766594075779,0.000549,87532.0,87521.0,0.01142582]
[1766594075987,0.01196,87531.0,87521.0,0.01142582]
[1766594076222,0.01196,87531.0,87517.0,0.00011]
[1766594076223,0.02338452,87531.0,87517.0,0.00011]
[1766594076431,0.01142517,87526.0,87517.0,0.00011]
[1766594076576,0.01369246,87528.0,87512.0,0.011427]
[1766594076784,0.01207,87527.0,87515.0,0.01142661]
[1766594076985,0.00011,87527.0,87515.0,0.06855921]
[1766594077197,0.01196,87526.0,87520.0,0.01142595]
[1766594077396,0.01196,87525.0,87522.0,0.01142569]
[1766594077641,0.01196,87524.0,87520.0,0.01142595]
[1766594077819,0.01196,87524.0,87515.0,0.2399578]
[1766594077820,0.01196,87524.0,87515.0,0.01142661]
[1766594078120,0.04568,87529.0,87511.0,0.01142713]
[1766594078121,0.000549,87520.0,87511.0,0.01142713]
[1766594078339,0.01196,87523.0,87513.0,0.06856096]
[1766594078744,0.01196,87523.0,87514.0,0.01142674]
[1766594078999,0.01196,87523.0,87507.0,0.00011]
[1766594079000,0.011411,87523.0,87507.0,0.00011]
[1766594079222,0.011411,87523.0,87512.0,0.011427]
[1766594079631,0.011411,87523.0,87515.0,0.01142661]
[1766594079825,1e-06,87523.0,87515.0,0.01142661]
[1766594080025,1e-06,87523.0,87507.0,0.00011]
[1766594080026,0.000549,87515.0,87507.0,0.00011]
[1766594080228,0.01192,87514.0,87509.0,0.01142739]
[1766594080424,3e-06,87514.0,87509.0,0.01142739]
[1766594080624,3e-06,87514.0,87511.0,0.01142713]
[1766594080842,3e-06,87514.0,87508.0,0.01142752]
[1766594080843,0.04568,87524.0,87512.0,0.01048426]
[1766594081046,0.04568,87524.0,87508.0,0.01142752]
[1766594081047,0.01192,87523.0,87513.0,0.01048426]